bitfinex-derivatives/quotes_SOLF0:USTF0_20240904
["timestamp","ask_amount","ask_price","bid_price","bid_amount"]
[1725457276013,3.8726,129.13,129.12,0.05944188]
[1725457276611,0.04918967,129.14,129.12,0.05944188]
[1725457278215,3.8704,129.21,129.12,44.70944188]
[1725457278409,0.40467017,129.2,129.15,44.65]
[1725457278709,46.0311,129.25,129.15,44.65]
[1725457278915,0.40438019,129.24,129.15,44.65]
[1725457279305,3.8704,129.21,129.18,0.05528153]
[1725457279509,46.0311,129.25,129.18,0.05528153]
[1725457279716,0.40437694,129.24,129.18,0.05528153]
[1725457280209,44.65,129.22,129.18,0.05528153]
[1725457280410,3.8708,129.19,129.18,0.05528153]
[1725457280707,3.8708,129.19,129.08,47.348]
[1725457280708,4.25338743,129.19,129.08,47.348]
[1725457281017,3.84901049,129.19,129.1,44.65]
[1725457281308,2.7023,129.21,129.13,44.65]
[1725457281510,2.7023,129.21,129.16,0.05703941]
[1725457281511,0.05430258,129.18,129.16,0.05703941]
[1725457281918,3.8714,129.17,129.16,0.05703941]
[1725457283111,3.92550258,129.18,129.16,0.05703941]
[1725457283623,0.05430258,129.18,129.16,0.05703941]
[1725457283914,0.40444223,129.24,129.17,44.65]
[1725457284212,9.1642,129.27,129.17,44.65]
[1725457284417,0.40396144,129.26,129.22,44.65]
[1725457284616,7.73861731,129.31,129.24,44.65]
[1725457284807,46.0255,129.34,129.24,44.65]
[1725457284808,0.40361793,129.3,129.24,44.65]
[1725457285014,0.40361793,129.33,129.26,0.05014538]
[1725457285217,0.4036503,129.32,129.23,47.4246]
[1725457285415,0.4036503,129.33,129.28,0.0549514]
[1725457285711,44.65,129.36,129.26,44.65]
[1725457285916,0.40302636,129.35,129.29,0.05908005]
[1725457286116,1.80122636,129.35,129.29,0.05908005]
[1725457286315,45.0531479,129.34,129.29,0.05908005]
[1725457286519,44.65,129.34,129.29,0.05908005]
[1725457286721,1.3982,129.35,129.29,0.05908005]
[1725457286722,3.8675,129.3,129.29,0.05908005]
[1725457286916,44.65,129.31,129.22,48.5199]
[1725457287116,44.65,129.29,129.17,44.65]
[1725457287310,44.65,129.25,129.15,44.65]
[1725457287713,44.65,129.25,129.18,3.871]
[1725457287918,0.05167625,129.23,129.2,0.05072597]
[1725457288525,0.05167625,129.23,129.21,44.65]
[1725457288816,0.05167625,129.23,129.2,0.05072597]
[1725457289023,0.05167625,129.23,129.21,44.65]
[1725457289215,7.766,129.29,129.21,47.2918]
[1725457289411,3.8681,129.29,129.23,44.65]
[1725457289915,3.8675,129.31,129.23,44.65]
[1725457290114,7.766,129.34,129.25,44.65]
[1725457290422,0.40340272,129.33,129.28,3.92624298]
[1725457290916,1.4154,129.35,129.28,44.70824298]
[1725457291114,227.0,129.37,129.28,44.70824298]
[1725457291418,3.8661,129.35,129.31,0.0594638]
[1725457291627,44.65,129.4,129.31,0.0594638]
[1725457291920,2.775,129.42,129.34,0.05132708]
[1725457292219,2.775,129.42,129.37,0.05669507]
[1725457292220,45.05258898,129.41,129.37,0.05669507]
[1725457292420,45.05258898,129.41,129.31,1.3503]
[1725457292421,0.40258898,129.4,129.38,0.0592192]
[1725457292609,3.8648,129.39,129.38,0.05940675]
[1725457293409,3.84585142,129.41,129.38,0.05940675]
[1725457293918,3.8648,129.39,129.38,0.05940675]
[1725457294213,44.65,129.4,129.31,5.2174]
[1725457294407,3.8659,129.36,129.31,5.2174]
[1725457294608,3.8659,129.36,129.31,1.3503]
[1725457294813,3.7746315,129.38,129.29,1.325]
[1725457295016,44.65,129.4,129.3,44.65]
[1725457295215,0.05056536,129.35,129.32,0.05113441]
[1725457295520,3.91676536,129.35,129.32,0.05190045]
[1725457295718,0.05056536,129.35,129.32,0.05190045]
[1725457296219,0.05056536,129.35,129.32,3.91860045]
[1725457296622,0.05056536,129.35,129.32,0.05190045]
[1725457297122,1.4154,129.42,129.34,44.65]
[1725457297521,3.8648,129.4,129.36,3.8655]
[1725457297721,3.8648,129.4,129.34,44.65]
[1725457297917,3.8648,129.4,129.36,3.8655]
[1725457298122,0.02546044,129.39,129.37,0.05726411]
[1725457298521,0.02546044,129.39,129.37,3.92246411]
[1725457299225,0.02546044,129.39,129.38,3.8651]
[1725457299420,0.02546044,129.39,129.37,0.05726411]
[1725457300922,0.02546044,129.39,129.37,3.92256411]
[1725457301331,3.8651,129.38,129.37,0.05726411]
[1725457302035,3.8661,129.35,129.3,44.65]
[1725457302225,44.65,129.41,129.3,44.65]
[1725457302929,44.65,129.36,129.34,0.05937307]
[1725457303138,48.5048972,129.36,129.24,44.65]
[1725457303432,48.5048972,129.36,129.25,3.8689]
[1725457303433,44.65,129.34,129.25,3.8689]
[1725457303926,3.8689,129.26,129.22,8.0447]
[1725457304129,0.0498282,129.25,129.23,0.05963402]
[1725457304319,0.04980477,129.25,129.23,44.70004796]
[1725457304522,0.04980477,129.25,129.24,3.8693]
[1725457305122,0.04980477,129.25,129.23,44.70004796]
[1725457305319,0.04980477,129.25,129.23,0.05004796]
[1725457305532,0.04980477,129.25,129.24,3.8693]
[1725457305733,228.4119,129.35,129.24,44.65]
[1725457306030,228.4119,129.35,129.27,44.65]
[1725457306031,1.4119,129.35,129.27,44.65]
[1725457306229,12.93576883,129.35,129.24,44.65]
[1725457306425,7.738,129.33,129.22,4.175]
[1725457306626,3.91865384,129.29,129.26,0.05848114]
[1725457306928,0.05065384,129.29,129.26,0.05848114]
[1725457307733,3.8682,129.28,129.26,0.05848114]
[1725457307927,0.05065384,129.29,129.26,0.05848114]
[1725457308234,44.65,129.29,129.18,3.8709]
[1725457308440,44.65,129.27,129.17,44.65]
[1725457308727,44.65,129.29,129.21,3.8701]
[1725457308931,8.14187155,129.28,129.17,44.65]
[1725457309128,7.738,129.28,129.16,4.0783]
[1725457309436,0.05771901,129.23,129.22,3.8697]
[1725457309627,0.05945922,129.24,129.21,0.04920256]
[1725457309933,3.92895922,129.24,129.21,3.91920256]
[1725457310229,0.05945922,129.24,129.21,0.04920256]
[1725457310432,44.65,129.22,129.11,46.0274]
[1725457310928,3.8714,129.18,129.11,46.0274]
[1725457311129,7.738,129.23,129.13,44.65]
[1725457311527,3.92094501,129.19,129.17,0.05078142]
[1725457311929,0.04994501,129.19,129.17,0.05078142]
[1725457312323,0.04994501,129.19,129.17,44.70078142]
[1725457312523,0.04994501,129.19,129.18,3.8711]
[1725457314737,9.1763,129.3,129.17,48.55365111]
[1725457314935,9.1763,129.3,129.2,44.65]
[1725457314936,0.40378996,129.29,129.2,44.65]
[1725457315335,10.6221,129.3,129.22,44.65]
[1725457315638,0.05945509,129.27,129.25,0.05209091]
[1725457316337,3.8687,129.26,129.25,0.05209091]
[1725457316641,0.05945509,129.27,129.25,0.05209091]
[1725457317942,3.8687,129.26,129.25,0.05209091]
[1725457318141,0.05945509,129.27,129.25,0.05209091]
[1725457318538,0.05945509,129.27,129.26,3.8687]
[1725457318737,0.05945509,129.27,129.26,48.5187]
[1725457319037,7.738,129.34,129.29,3.8676]
[1725457319237,7.738,129.34,129.26,44.65]
[1725457319447,1.4321,129.35,129.28,44.65]
[1725457319633,3.8667,129.33,129.3,3.8673]
[1725457320347,3.91682564,129.33,129.3,3.92634991]
[1725457320639,0.05012564,129.33,129.3,0.05904991]
[1725457321641,3.8672,129.31,129.3,0.05904991]
[1725457321841,0.05012564,129.33,129.3,0.05904991]
[1725457322651,3.8671,129.32,129.3,0.05904991]
[1725457323054,0.05012564,129.33,129.3,0.05904991]
[1725457323260,3.8672,129.31,129.3,0.05904991]
[1725457323552,0.05012564,129.33,129.3,0.05904991]
[1725457323741,0.05012564,129.33,129.3,3.92634991]
[1725457323944,0.05012564,129.33,129.3,0.05904991]
[1725457324849,3.91692564,129.33,129.3,3.92634991]
[1725457325055,0.05012564,129.33,129.3,0.05904991]
[1725457325257,0.05012564,129.33,129.31,44.65]
[1725457325648,0.05012564,129.33,129.3,2.79574991]
[1725457325848,3.91672564,129.33,129.3,6.66314991]
[1725457326050,3.91672564,129.33,129.3,5.32634991]
[1725457326248,3.91672564,129.33,129.3,1.45894991]
[1725457326249,0.05012564,129.33,129.3,1.45894991]
[1725457326543,0.05012564,129.33,129.31,3.867]
[1725457326748,0.05012564,129.33,129.3,1.45894991]
[1725457326942,3.867,129.32,129.3,0.05904991]
[1725457327156,0.05012564,129.33,129.3,0.05904991]
[1725457327551,44.65,129.41,129.32,44.65]
[1725457327753,0.40259767,129.4,129.32,44.65]
[1725457328056,3.8654,129.38,129.32,44.65]
[1725457328453,7.738,129.42,129.34,44.65]
[1725457328656,0.0404508,129.39,129.37,0.05929708]
[1725457329762,3.9053508,129.39,129.37,0.05929708]
[1725457329951,0.0404508,129.39,129.37,0.05929708]
[1725457330352,3.9054508,129.39,129.37,0.05929708]
[1725457330757,0.0404508,129.39,129.37,0.05929708]
[1725457331156,0.0404508,129.39,129.37,1.37409708]
[1725457331353,0.0404508,129.39,129.38,3.8651]
[1725457332654,3.8636,129.43,129.37,1.3148]
[1725457332860,3.80719294,129.45,129.37,2.6683]
[1725457333065,0.40215725,129.44,129.37,2.6683]
[1725457333359,0.40215725,129.44,129.39,3.8647]
[1725457333360,3.8636,129.43,129.39,3.8647]
[1725457333754,3.8636,129.43,129.4,0.0595013]
[1725457334151,3.80719294,129.45,129.4,0.0595013]
[1725457334456,0.40216764,129.44,129.4,0.0595013]
[1725457334860,3.8638,129.43,129.4,0.0595013]
[1725457335060,7.738,129.47,129.4,0.0595013]
[1725457335361,0.40210489,129.46,129.4,0.0595013]
[1725457335759,44.65,129.5,129.4,0.0595013]
[1725457335958,4.31738078,129.48,129.43,0.05774686]
[1725457336157,0.40202988,129.47,129.43,0.05774686]
[1725457336364,0.40190356,129.46,129.43,0.05774686]
[1725457336554,3.8633,129.44,129.43,0.05774686]
[1725457337166,0.40207838,129.44,129.39,3.8648]
[1725457337358,0.40215668,129.43,129.37,2.6683]
[1725457337663,3.864,129.42,129.37,2.6683]
[1725457338056,0.05774687,129.41,129.38,0.05914891]
[1725457339064,0.05774687,129.41,129.39,3.8647]
[1725457339262,0.05774687,129.41,129.39,44.65]
[1725457339665,0.05774687,129.41,129.4,3.8645]
[1725457340663,3.87978623,129.47,129.4,37.09]
[1725457340860,0.40188885,129.46,129.4,37.09]
[1725457341165,44.828,129.49,129.41,3.8641]
[1725457341359,4.32265751,129.48,129.4,37.09]
[1725457341666,3.8629,129.46,129.43,0.05423169]
[1725457342063,3.8625,129.47,129.44,3.8632]
[1725457342372,0.40188837,129.46,129.44,0.05736181]
[1725457342660,3.863,129.45,129.44,0.05736181]
[1725457342865,0.40206958,129.45,129.37,37.09]
[1725457343264,3.8638,129.43,129.39,3.8647]
[1725457343561,3.8641984,129.46,129.39,3.8647]
[1725457343866,3.8641984,129.46,129.37,37.09]
[1725457343867,0.04975202,129.44,129.41,0.0584342]
[1725457344754,3.8639,129.42,129.41,0.0584342]
[1725457344960,44.828,129.43,129.35,1.452]
[1725457345263,0.40229414,129.42,129.37,37.09]
[1725457345466,11.6018,129.43,129.37,37.09]
[1725457345467,7.738,129.43,129.37,37.09]
[1725457345659,7.738,129.43,129.35,37.09]
[1725457345862,0.40227041,129.42,129.34,1.3973]
[1725457346060,0.05345626,129.39,129.37,0.05313162]
[1725457346265,3.91845626,129.39,129.37,0.05313162]
[1725457346466,0.05345626,129.39,129.37,0.05313162]
[1725457346968,0.05345626,129.39,129.38,3.8651]
[1725457348270,0.05345626,129.39,129.38,5.2541]
[1725457348464,3.78187451,129.47,129.41,3.864]
[1725457348670,3.8632,129.45,129.41,3.864]
[1725457348964,0.40197484,129.46,129.4,3.8644]
[1725457348965,3.89958596,129.46,129.4,3.8644]
[1725457349172,44.828,129.48,129.39,37.09]
[1725457349173,0.402026,129.45,129.39,37.09]
[1725457349366,0.05352986,129.43,129.41,41.0047558]
[1725457349568,0.4018858,129.46,129.41,37.09]
[1725457349767,3.8629,129.46,129.41,37.09]
[1725457349959,3.8629,129.46,129.42,3.8637]
[1725457349960,0.0582365,129.45,129.42,3.8637]
[1725457350662,3.9214365,129.45,129.42,3.8637]
[1725457350864,0.0582365,129.45,129.42,0.05219224]
[1725457351872,3.9214365,129.45,129.42,0.05219224]
[1725457352773,0.0582365,129.45,129.42,0.05219224]
[1725457353271,0.0582365,129.45,129.42,3.91589224]
[1725457353470,0.0582365,129.45,129.42,0.05219224]
[1725457354072,3.8636,129.43,129.42,0.05219224]
[1725457354471,0.0582365,129.45,129.42,0.05219224]
[1725457354670,3.9214365,129.45,129.42,3.91599224]
[1725457355168,0.0582365,129.45,129.42,0.05219224]
[1725457355574,0.0582365,129.45,129.43,3.8635]
[1725457355777,0.0582365,129.45,129.42,0.05219224]
[1725457356076,3.9214365,129.45,129.42,3.91599224]
[1725457356275,0.0582365,129.45,129.42,0.05219224]
[1725457357374,3.9212365,129.45,129.42,3.91599224]
[1725457357679,3.9212365,129.45,129.42,0.05219224]
[1725457357680,0.0582365,129.45,129.42,0.05219224]
[1725457357884,3.9213365,129.45,129.42,3.91609224]
[1725457358076,0.0582365,129.45,129.42,0.05219224]
[1725457359076,3.9214365,129.45,129.42,3.91599224]
[1725457359378,0.0582365,129.45,129.42,0.05219224]
[1725457359575,0.0582365,129.45,129.44,3.8633]
[1725457359879,0.0582365,129.45,129.42,0.05219224]
[1725457361085,3.9212365,129.45,129.42,0.05219224]
[1725457361483,0.0582365,129.45,129.42,3.91609224]
[1725457361973,0.0582365,129.45,129.42,0.05219224]
[1725457362778,3.9214365,129.45,129.42,0.05219224]
[1725457362980,3.9214365,129.45,129.42,3.91599224]
[1725457364287,3.8636,129.43,129.42,0.05219224]
[1725457364475,7.738,129.42,129.3,37.09]
[1725457364680,7.738,129.42,129.28,2.7628]
[1725457364681,37.09,129.38,129.28,41.2911]
[1725457364883,9.1449,129.42,129.28,41.2911]
[1725457364884,37.09,129.36,129.28,4.2011]
[1725457365086,41.0519918,129.36,129.28,4.2011]
[1725457365382,0.0551869,129.33,129.31,0.05217817]
[1725457365779,3.8669,129.32,129.31,0.05217817]
[1725457365982,40.9569,129.32,129.31,0.05217817]
[1725457366290,37.09,129.32,129.21,41.2253]
[1725457366486,37.09,129.32,129.24,3.8693]
[1725457366487,3.8679,129.29,129.24,3.8693]
[1725457367091,38.5126,129.32,129.21,43.58430063]
[1725457367387,38.5126,129.32,129.25,0.0541039]
[1725457367388,0.05659973,129.28,129.25,0.0541039]
[1725457367585,3.8687,129.26,129.25,0.0541039]
[1725457367785,37.09,129.26,129.17,37.09]
[1725457368187,40.96693564,129.26,129.17,37.09]
[1725457368494,37.09,129.24,129.17,3.8713]
[1725457368891,0.05050727,129.22,129.19,0.05111537]
[1725457370991,0.05050727,129.22,129.19,3.92171537]
[1725457371191,0.05050727,129.22,129.19,0.05111537]
[1725457372086,0.05050727,129.22,129.19,3.92191537]
[1725457373193,0.05050727,129.22,129.2,3.8705]
[1725457373585,0.05050727,129.22,129.19,0.05111537]
[1725457373791,3.8687,129.26,129.21,3.8702]
[1725457373992,38.4379,129.3,129.19,37.09]
[1725457374298,9.09961295,129.29,129.22,3.8697]
[1725457374600,38.4379,129.3,129.21,37.09]
[1725457374793,0.05018139,129.27,129.24,0.05504668]
[1725457374989,3.91878139,129.27,129.24,0.05504668]
[1725457375194,0.05018139,129.27,129.24,0.05504668]
[1725457375795,45.17063608,129.4,129.29,3.8678]
[1725457375796,9.09868158,129.31,129.29,3.8678]
[1725457376097,3.8673,129.31,129.26,37.09]
[1725457376393,37.09,129.34,129.26,37.09]
[1725457376587,37.09,129.34,129.24,37.09]
[1725457376795,37.09,129.32,129.26,3.8685]
[1725457377093,0.05492405,129.3,129.28,0.05916927]
[1725457378297,0.05492405,129.3,129.29,3.8678]
[1725457378493,3.8661,129.35,129.28,37.09]
[1725457378993,3.8659,129.36,129.31,3.867]
[1725457379393,40.97055202,129.36,129.24,1.4558]
[1725457379605,0.05327759,129.31,129.29,0.05402045]
[1725457379799,0.05198502,129.31,129.29,0.05430511]
[1725457379995,0.05198502,129.31,129.29,3.92190511]
[1725457380194,0.05198502,129.31,129.29,0.05430511]
[1725457380594,0.05198502,129.31,129.3,3.8675]
[1725457380899,0.05198502,129.31,129.29,0.05430511]
[1725457381597,37.14198502,129.31,129.29,0.05430511]
[1725457381810,37.09,129.3,129.29,0.05430511]
[1725457382099,3.8675,129.3,129.29,0.05430511]
[1725457382490,0.05198502,129.31,129.29,0.05430511]
[1725457383103,3.8675,129.3,129.29,0.05430511]
[1725457383301,0.05198502,129.31,129.29,0.05430511]
[1725457383802,3.8675,129.3,129.29,0.05430511]
[1725457384404,3.91928502,129.31,129.29,0.05430511]
[1725457384601,0.05198502,129.31,129.29,0.05430511]
[1725457385504,3.91938502,129.31,129.29,0.05430511]
[1725457386704,0.05198502,129.31,129.29,0.05430511]
[1725457387701,37.14198502,129.31,129.29,0.05430511]
[1725457388012,3.8675,129.3,129.29,0.05430511]
[1725457388710,3.8686,129.27,129.2,5.30103664]
[1725457388905,3.8686,129.27,129.2,6.74903664]
[1725457389101,3.8698,129.23,129.2,2.8712]
[1725457389411,37.09,129.25,129.19,1.4285]
[1725457389604,0.05952783,129.23,129.21,0.05433398]
[1725457389916,37.14952783,129.23,129.21,0.05433398]
[1725457390207,3.8712,129.18,129.14,3.8722]
[1725457390512,3.84028172,129.19,129.11,1.3754]
[1725457390813,1.3364,129.26,129.1,37.09]
[1725457390814,37.09,129.18,129.1,37.09]
[1725457391013,1.4537,129.22,129.12,37.09]
[1725457391309,0.05106689,129.18,129.16,0.05213306]
[1725457391912,40.9614,129.17,129.16,0.05213306]
[1725457392106,37.09,129.17,129.08,1.4269]
[1725457392511,3.8722,129.15,129.1,3.8735]
[1725457392710,3.8722,129.15,129.08,1.4269]
[1725457392711,37.09,129.17,129.08,1.4269]
[1725457393214,37.13918691,129.14,129.11,0.04974827]
[1725457393413,37.09,129.12,129.02,41.1635]
[1725457393809,37.09,129.12,129.02,44.94039775]
[1725457394214,7.75670038,129.14,129.08,3.8738]
[1725457394421,0.05164629,129.12,129.1,0.0522023]
[1725457394723,0.05084048,129.12,129.1,0.05743269]
[1725457395414,0.05084048,129.12,129.1,3.93083269]
[1725457395629,0.05084048,129.12,129.1,37.14743269]
[1725457395817,0.05084048,129.12,129.1,0.05743269]
[1725457396122,0.05084048,129.12,129.11,3.8732]
[1725457399320,3.8715,129.17,129.13,3.8725]
[1725457399620,234.738,129.21,129.12,37.09]
[1725457399927,3.8711,129.18,129.12,37.09]
[1725457400428,0.05351982,129.16,129.15,3.872]
[1725457400724,0.05613775,129.17,129.14,0.05807297]
[1725457401424,0.05613775,129.17,129.16,3.8717]
[1725457401627,37.09,129.24,129.14,37.09]
[1725457401923,3.8704,129.21,129.17,3.8714]
[1725457402627,0.0561525,129.2,129.18,0.05674137]
[1725457403224,3.9268525,129.2,129.18,0.05674137]
[1725457403425,0.0561525,129.2,129.18,0.05674137]
[1725457404125,0.0561525,129.2,129.18,37.14674137]
[1725457404524,0.0561525,129.2,129.19,3.8708]
[1725457404721,234.738,129.26,129.17,3.94293278]
[1725457404925,40.9607,129.2,129.16,3.8715]
[1725457405227,40.9607,129.2,129.1,38.4847]
[1725457405228,37.09,129.2,129.1,38.4847]
[1725457405428,40.9607,129.2,129.16,3.8717]
[1725457405623,0.05101713,129.19,129.17,0.05929894]
[1725457405828,0.05432006,129.19,129.17,0.05765537]
[1725457406025,0.05432006,129.19,129.18,3.8711]
[1725457406224,37.09,129.26,129.16,40.92605304]
[1725457406425,37.09,129.28,129.18,37.09]
[1725457406627,3.869,129.25,129.22,3.8697]
[1725457406930,5.5506,129.3,129.2,37.09]
[1725457407129,3.88678219,129.3,129.22,37.09]
[1725457407430,0.05596028,129.26,129.24,3.92177521]
[1725457407621,0.05649743,129.26,129.24,3.92073348]
[1725457407931,0.05649743,129.26,129.24,0.05143348]
[1725457409018,0.05649743,129.26,129.25,3.869]
[1725457409818,0.05649743,129.26,129.24,3.92053348]
[1725457410025,0.05649743,129.26,129.24,0.05143348]
[1725457410434,0.05649743,129.26,129.25,3.869]
[1725457413034,37.14649743,129.26,129.16,37.09]
[1725457413239,37.09,129.24,129.16,3.80754623]
[1725457413537,37.09,129.23,129.12,37.09]
[1725457413835,39.8158,129.23,129.12,37.09]
[1725457414032,3.8703,129.21,129.12,37.09]
[1725457414234,3.8703,129.21,129.15,0.05958998]
[1725457414528,0.05286682,129.18,129.15,0.05958998]
[1725457414831,0.05286682,129.18,129.17,3.8714]
[1725457415233,37.14286682,129.18,129.15,0.05958998]
[1725457416237,3.92416682,129.18,129.15,0.05958998]
[1725457416727,0.05286682,129.18,129.17,3.8714]
[1725457416927,0.05286682,129.18,129.15,0.05958998]
[1725457417731,3.8717,129.16,129.15,0.05958998]
[1725457417927,37.09,129.16,129.08,1.3661]
[1725457418434,3.8722,129.15,129.1,3.8733]
[1725457418936,0.055791,129.14,129.11,0.05879803]
[1725457420336,37.145791,129.14,129.11,0.05879803]
[1725457420537,0.055791,129.14,129.11,0.05879803]
[1725457420838,3.928291,129.14,129.11,0.05879803]
[1725457421231,0.055791,129.14,129.11,0.05879803]
[1725457421739,3.8728,129.13,129.11,0.05879803]
[1725457422243,0.055791,129.14,129.11,0.05879803]
[1725457422540,3.928191,129.14,129.11,0.05879803]
[1725457422738,0.055791,129.14,129.11,0.05879803]
[1725457423641,0.055791,129.14,129.12,3.8728]
[1725457424338,0.055791,129.14,129.12,3.8729]
[1725457424535,0.055791,129.14,129.11,0.05879803]
[1725457425334,0.055791,129.14,129.13,3.8726]
[1725457426044,1.444,129.2,129.1,37.09]
[1725457426440,3.8714,129.17,129.14,3.8721]
[1725457426650,3.8714,129.17,129.1,37.09]
[1725457426841,0.05098125,129.15,129.12,0.05060595]
[1725457427143,0.05098125,129.15,129.14,3.8723]
[1725457427549,37.09,129.21,129.12,37.09]
[1725457427848,3.871,129.19,129.16,3.8715]
[1725457428347,37.09,129.19,129.08,38.4561]
[1725457428643,37.09,129.19,129.12,0.05348575]
[1725457428644,0.05066743,129.15,129.12,0.05348575]
[1725457429450,0.05066743,129.15,129.13,3.8723]
[1725457429651,0.05066743,129.15,129.12,0.05348575]
[1725457429950,0.05066743,129.15,129.14,3.8723]
[1725457431651,3.8706,129.2,129.17,3.8713]
[1725457432544,3.92347583,129.2,129.18,3.8711]
[1725457432743,3.92347583,129.2,129.17,0.05324337]
[1725457433347,0.05287583,129.2,129.17,0.05324337]
[1725457433753,3.8708,129.19,129.17,0.05324337]
[1725457434348,3.92347583,129.2,129.17,0.05324337]
[1725457434549,0.05287583,129.2,129.17,0.05324337]
[1725457435150,37.14287583,129.2,129.17,0.05324337]
[1725457435456,40.9611,129.18,129.17,0.05324337]
[1725457436460,37.49468455,129.18,129.08,2.768]
[1725457436658,37.09,129.15,129.08,2.768]
[1725457436858,3.8728,129.13,129.08,2.768]
[1725457437058,3.8728,129.13,129.1,3.8734]
[1725457437350,3.92551805,129.13,129.1,3.9318166]
[1725457438746,0.05271805,129.13,129.1,0.0584166]
[1725457439650,0.05271805,129.13,129.12,3.8729]
[1725457440052,0.05271805,129.13,129.08,2.768]
[1725457440053,37.09,129.21,129.11,37.09]
[1725457440250,37.09,129.21,129.13,37.09]
[1725457440657,9.50774826,129.2,129.11,37.09]
[1725457440849,9.10322347,129.19,129.11,37.09]
[1725457441054,9.10322347,129.18,129.11,37.09]
[1725457441249,0.05219319,129.16,129.14,3.8721]
[1725457441757,0.05219319,129.16,129.15,3.872]
[1725457441966,3.84302346,129.22,129.13,37.09]
[1725457442261,3.8704,129.21,129.13,37.09]
[1725457442458,9.10204392,129.22,129.13,37.09]
[1725457442859,3.8705,129.21,129.17,3.8713]
[1725457443156,0.02012175,129.19,129.18,0.05490802]
[1725457443357,0.02012175,129.2,129.19,3.8708]
[1725457443862,0.02012175,129.2,129.18,0.05490802]
[1725457443863,3.8708,129.19,129.18,0.05490802]
[1725457444060,0.02012175,129.2,129.18,0.05490802]
[1725457444261,9.12250597,129.2,129.18,0.05490802]
[1725457444461,3.8708,129.19,129.18,0.05490802]
[1725457445267,40.9608,129.19,129.18,0.05490802]
[1725457445666,50.06362878,129.19,129.18,0.05490802]
[1725457445858,46.19282878,129.19,129.09,38.4342]
[1725457446168,9.10282878,129.18,129.09,1.3442]
[1725457446562,3.8719,129.16,129.12,3.8727]
[1725457446966,0.05245208,129.15,129.13,0.05363313]
[1725457448670,3.92455208,129.15,129.13,0.05363313]
[1725457449572,3.8723,129.14,129.13,0.05363313]
[1725457449975,37.14245208,129.15,129.13,0.05363313]
[1725457450176,3.92455208,129.15,129.13,0.05363313]
[1725457450366,0.05245208,129.15,129.13,0.05363313]
[1725457452074,0.05245208,129.15,129.13,3.92603313]
[1725457452775,0.05245208,129.15,129.13,0.05363313]
[1725457452776,3.92445208,129.15,129.13,0.05363313]
[1725457453374,3.8723,129.14,129.13,0.05363313]
[1725457454171,3.92455208,129.15,129.13,0.05363313]
[1725457455470,37.09,129.14,129.03,39.8869]
[1725457455676,37.09,129.14,129.04,1.3661]
[1725457455971,37.09,129.14,129.09,3.8736]
[1725457456375,40.9621,129.15,129.05,37.09]
[1725457456680,0.05568424,129.11,129.09,0.05468923]
[1725457457378,0.05568424,129.11,129.1,3.8733]
[1725457457575,0.05568424,129.11,129.1,7.68100952]
[1725457457882,0.05568424,129.11,129.1,3.8733]
[1725457458977,0.05568424,129.11,129.09,0.05468923]
[1725457459171,3.92898424,129.11,129.09,0.05468923]
[1725457459881,3.8735,129.1,129.09,0.05468923]
[1725457460073,0.05568424,129.11,129.09,0.05468923]
[1725457460478,3.92908424,129.11,129.09,3.92848923]
[1725457460678,3.92908424,129.11,129.09,0.05468923]
[1725457461783,0.05568424,129.11,129.09,0.05468923]
[1725457462882,3.92908424,129.11,129.09,0.05468923]
[1725457463184,0.05568424,129.11,129.09,0.05468923]
[1725457463784,3.8735,129.1,129.09,0.05468923]
[1725457463988,37.09,129.1,128.99,37.09]
[1725457464191,37.09,129.08,128.99,41.05940116]
[1725457464393,37.09,129.08,128.99,3.96940116]
[1725457464594,37.09,129.08,128.97,2.7514]
[1725457464595,37.09,129.06,128.97,2.7514]
[1725457464784,37.09,129.04,128.97,2.7514]
[1725457464979,0.05079266,129.02,128.99,0.04941809]
[1725457465184,37.14079266,129.02,128.99,0.04941809]
[1725457465691,3.8765,129.0,128.99,0.04941809]
[1725457467285,3.8774,128.97,128.91,94.6825879]
[1725457467487,37.09,129.0,128.92,3.92362287]
[1725457468285,37.09,129.0,128.91,94.6825879]
[1725457468488,0.05752768,128.97,128.94,0.05191757]